bitfinex/quotes_ETHUSD_20251110
["timestamp","ask_amount","ask_price","bid_price","bid_amount"]
[1762812499293,0.4937,3552.8,3552.2,2.8151568]
[1762812499497,0.4937,3552.8,3552.1,4.87720423]
[1762812500369,0.4937,3552.8,3552.1,4.52534434]
[1762812501367,0.4937,3552.8,3552.1,1.71012803]
[1762812501690,0.4967,3552.2,3552.1,0.002]
[1762812502257,0.4937,3552.5,3552.1,0.002]
[1762812504318,0.4967,3552.2,3552.1,0.002]
[1762812504795,0.9904,3552.2,3552.1,0.002]
[1762812506398,0.9904,3552.2,3551.7,1.81513104]
[1762812506602,0.4967,3552.2,3551.8,0.004]
[1762812506768,0.2141,3552.1,3551.8,0.004]
[1762812506968,0.4897,3551.9,3551.8,0.004]
[1762812507474,0.2141,3552.1,3551.8,0.004]
[1762812508315,0.4897,3551.9,3551.8,0.004]
[1762812508815,0.4897,3551.9,3551.6,1.81513104]
[1762812509002,0.4897,3551.8,3551.7,0.0032]
[1762812509207,0.2141,3552.1,3551.6,1.81513104]
[1762812510095,0.4897,3551.7,3551.6,1.81513104]
[1762812510426,0.4897,3551.7,3551.5,0.002]
[1762812510618,0.954,3551.6,3551.5,0.002]
[1762812512310,4.37948035,3552.4,3551.5,0.9825]
[1762812512311,0.57715264,3552.4,3551.5,0.9825]
[1762812512482,0.4643,3552.3,3551.5,0.22394105]
[1762812512687,0.4643,3552.3,3551.6,2.81558032]
[1762812513314,0.4643,3552.3,3551.3,0.002]
[1762812513520,0.4643,3552.3,3551.4,2.8157336]
[1762812513829,0.02813191,3552.2,3551.3,2.81786493]
[1762812514004,0.02813191,3552.2,3551.3,2.8178328]
[1762812514203,0.4643,3552.1,3551.3,2.8178328]
[1762812514537,0.4643,3552.1,3551.3,0.002]
[1762812514684,0.4643,3552.4,3551.3,0.62248098]
[1762812514885,0.4643,3552.4,3551.6,2.81557972]
[1762812515411,0.4643,3552.4,3551.4,3.21249095]
[1762812515412,0.4643,3552.4,3551.5,2.8156875]
[1762812515614,0.4643,3552.4,3551.3,0.002]
[1762812515790,0.4643,3552.4,3551.5,2.81565261]
[1762812516115,0.4643,3552.4,3551.6,2.8156246]
[1762812516311,0.4643,3552.4,3551.5,2.81568794]
[1762812516705,0.1904,3552.9,3551.5,0.60302524]
[1762812516923,0.4643,3552.7,3551.3,0.002]
[1762812517084,0.4643,3552.7,3551.3,14.8987]
[1762812517284,0.4643,3552.7,3551.9,2.81533428]
[1762812517528,0.4643,3552.7,3552.0,1.81513104]
[1762812517697,0.4643,3552.7,3552.0,4.63043868]
[1762812517897,0.4897,3552.1,3552.0,1.81513104]
[1762812518223,0.4897,3552.1,3552.0,4.63044635]
[1762812518586,0.4897,3552.1,3552.0,4.47133479]
[1762812519729,0.4643,3552.4,3552.1,2.81517418]
[1762812520025,0.1904,3552.9,3552.3,0.3967]
[1762812520340,0.001,3552.4,3552.2,4.47117371]
[1762812520544,0.001,3552.4,3552.3,2.81507755]
[1762812521418,0.001,3552.4,3552.3,3.21177755]
[1762812521602,0.001,3552.4,3552.3,17.71177755]
[1762812521810,0.001,3552.4,3552.3,19.96974414]
[1762812522004,0.001,3552.4,3552.3,14.8967]
[1762812522322,0.4907,3552.4,3552.3,14.5]
[1762812523142,0.4907,3552.4,3552.2,4.47117256]
[1762812523350,0.4907,3552.4,3552.3,1.65601948]
[1762812523524,0.4907,3552.4,3552.3,4.47109703]
[1762812523851,0.4907,3552.4,3552.3,1.65601948]
[1762812524416,0.955,3552.4,3552.3,1.65601948]
[1762812524743,0.955,3552.4,3552.3,1.33252816]
[1762812526455,0.955,3552.4,3551.7,1.33252816]
[1762812526751,0.001,3552.4,3551.8,2.81547384]
[1762812527053,0.001,3552.4,3551.9,2.81532441]
[1762812527420,0.001,3552.4,3551.7,6.40980378]
[1762812527616,0.001,3552.4,3551.9,2.81534527]
[1762812527835,0.001,3552.4,3552.0,2.81525831]
[1762812528233,0.001,3552.4,3551.8,2.81547384]
[1762812528528,0.001,3552.4,3552.3,0.3967]
[1762812529451,0.001,3552.4,3552.3,3.21177755]
[1762812529851,0.001,3552.4,3552.3,0.3967]
[1762812530456,0.001,3552.4,3552.3,3.21177755]
[1762812530657,0.001,3552.4,3552.3,2.89989699]
[1762812530821,0.001,3552.4,3552.3,3.58739646]
[1762812531028,0.001,3552.4,3552.3,5.32542862]
[1762812531442,0.001,3552.4,3552.3,19.82542862]
[1762812532131,0.001,3552.4,3552.3,22.09452522]
[1762812532325,0.001,3552.4,3552.3,21.08514062]
[1762812532723,0.001,3552.4,3552.3,18.18526307]
[1762812532928,0.001,3552.4,3552.3,15.83252816]
[1762812533238,0.4907,3552.4,3552.3,15.83252816]
[1762812533556,0.001,3552.4,3552.3,18.64760571]
[1762812533783,0.4907,3552.4,3552.3,14.5]
[1762812534053,0.4907,3552.4,3552.1,2.81521239]
[1762812534260,0.4907,3552.4,3551.7,1.33252816]
[1762812534466,0.001,3552.4,3552.2,2.81508888]
[1762812534774,0.001,3552.4,3552.2,17.3151283]
[1762812534984,0.001,3552.4,3552.3,2.89987755]
[1762812536783,0.001,3552.4,3552.3,2.63509319]
[1762812536946,0.001,3552.4,3552.3,2.71989319]
[1762812537142,0.001,3552.4,3552.3,4.72339915]
[1762812537569,0.001,3552.4,3552.3,4.63859915]
[1762812537975,0.001,3552.4,3552.3,2.63709319]
[1762812538175,0.001,3552.4,3552.3,17.13709319]
[1762812538761,0.001,3552.4,3552.3,17.40187755]
[1762812540654,0.9487,3552.4,3552.3,0.002]
[1762812541002,0.9487,3552.4,3551.9,2.34391276]
[1762812541003,0.9487,3552.4,3551.9,0.002]
[1762812541201,0.4832,3552.0,3551.9,0.002]
[1762812541691,0.9477,3552.0,3551.9,0.002]
[1762812542058,0.97583191,3552.0,3551.9,0.002]
[1762812542459,0.9477,3552.0,3551.9,0.002]
[1762812542775,0.6476,3551.9,3550.7,2.60262306]
[1762812542977,0.4832,3551.6,3550.8,3.36683989]
[1762812543155,0.4832,3551.6,3550.8,0.55059229]
[1762812543362,0.4645,3551.5,3550.3,0.405504]
[1762812543557,0.4645,3551.5,3550.9,2.81617493]
[1762812543765,0.4645,3551.5,3550.8,2.81626675]
[1762812543977,0.4645,3551.5,3550.9,2.81612964]
[1762812544258,0.4645,3551.5,3550.3,2.81666338]
[1762812544259,0.4645,3551.5,3550.5,0.405504]
[1762812544480,0.4645,3551.5,3551.1,2.81602376]
[1762812545486,0.1831,3551.9,3550.5,0.405504]
[1762812545781,0.6476,3552.1,3551.4,2.90252328]
[1762812545955,0.6476,3552.1,3551.4,0.0868]
[1762812546153,0.4645,3552.0,3551.5,2.84380929]
[1762812546357,0.4645,3552.0,3551.4,0.0868]
[1762812546358,0.4645,3552.0,3551.4,2.90256589]
[1762812546559,0.4645,3552.0,3551.4,0.0868]
[1762812546853,0.1831,3552.3,3551.4,1.54548]
[1762812547060,0.1831,3552.3,3551.7,2.81549208]
[1762812547309,0.1831,3552.3,3551.8,2.81544522]
[1762812547487,0.1831,3552.3,3551.9,2.8153564]
[1762812547890,0.6476,3552.3,3551.8,2.81544424]
[1762812548232,0.001,3552.4,3551.9,2.81533605]
[1762812548516,0.001,3552.4,3552.3,0.0868]
[1762812548923,0.001,3552.4,3552.3,2.81507755]
[1762812549129,0.001,3552.4,3552.3,2.84322832]
[1762812549288,0.001,3552.4,3552.3,2.81507755]
[1762812549620,0.001,3552.4,3552.3,17.31507755]
[1762812549833,0.001,3552.4,3552.3,19.7336062]
[1762812550786,0.001,3552.4,3552.3,20.9933182]
[1762812554917,0.001,3552.4,3552.3,20.81976927]
[1762812555519,0.001,3552.4,3552.3,22.15229743]
[1762812558244,0.001,3552.8,3552.7,3.2202646]
[1762812558450,0.001,3552.8,3552.7,5.20947409]
[1762812558745,0.001,3552.8,3552.7,4.5081242]
[1762812558915,0.001,3552.8,3552.7,4.4799766]
[1762812559858,0.4842,3552.8,3552.4,1.33252816]
[1762812560058,0.4655,3552.8,3552.7,2.8147606]
[1762812560277,0.9487,3552.8,3552.7,2.8147606]
[1762812560478,0.9487,3552.8,3552.6,2.81481095]
[1762812560685,0.4832,3552.7,3552.6,2.81481095]
[1762812560835,0.001,3552.8,3552.7,2.67082178]
[1762812563669,0.001,3552.8,3552.7,3.75814187]
[1762812564250,0.001,3552.8,3552.7,5.09067003]
[1762812565950,0.001,3552.8,3552.7,3.75814187]
[1762812566986,0.001,3552.8,3552.7,3.50617998]
[1762812569371,0.001,3552.8,3552.7,2.82436389]
[1762812572945,0.001,3552.8,3552.7,2.62828612]
[1762812574080,0.4951,3552.8,3552.4,7.0]
[1762812574386,0.4984,3552.5,3552.4,7.0]
[1762812574686,1.2178212,3552.5,3552.4,7.0]
[1762812575146,1.2178212,3552.5,3552.3,0.002]
[1762812575440,0.7929,3552.4,3552.3,0.002]
[1762812577289,0.7929,3552.4,3551.9,0.002]
[1762812577290,1.259712,3552.3,3551.9,0.002]
[1762812577579,0.4964,3552.0,3551.9,0.002]
[1762812577880,0.91231122,3552.0,3550.6,0.002]
[1762812578087,0.4886,3550.9,3550.6,0.002]
[1762812578452,0.4891,3550.7,3550.6,0.002]
[1762812578654,0.51723191,3550.7,3550.6,0.002]
[1762812578849,0.9832,3550.7,3550.6,0.002]
[1762812579049,0.1898,3551.2,3550.6,0.5179]
[1762812579454,0.1898,3551.2,3550.7,2.81633903]
[1762812579679,0.6839,3551.4,3550.6,0.5179]
[1762812579881,0.1898,3551.4,3550.9,2.81614806]
[1762812580096,0.6839,3551.7,3550.8,2.81622969]
[1762812580263,0.6839,3551.7,3551.0,2.81604738]
[1762812580611,0.6839,3551.7,3551.1,2.81601007]
[1762812581767,0.6839,3551.7,3550.9,0.29943297]
[1762812582080,0.6839,3551.7,3551.0,2.81603369]
[1762812582791,0.6839,3551.7,3551.1,2.81602079]
[1762812582998,0.6839,3551.7,3551.1,0.59317048]
[1762812583162,0.6839,3551.7,3550.9,0.29943297]
[1762812583497,0.6839,3551.7,3551.2,2.81591606]
[1762812583682,0.4941,3551.6,3550.9,0.29943297]
[1762812584000,0.4941,3551.6,3551.0,2.81610425]
[1762812584871,0.4941,3551.6,3550.7,0.405504]
[1762812585195,0.4941,3551.6,3551.0,2.81606628]
[1762812585959,0.4941,3551.6,3550.9,2.81616967]
[1762812586493,0.4984,3551.0,3550.4,1.259712]
[1762812586655,0.454,3550.8,3550.5,0.8759712]
[1762812586855,0.454,3550.8,3550.6,2.81636937]
[1762812587166,0.4941,3551.1,3550.5,0.8759712]
[1762812587380,0.4941,3551.1,3550.8,2.81619156]
[1762812587974,0.4941,3551.1,3550.6,2.81641798]
[1762812588175,0.4941,3551.1,3550.4,1.665216]
[1762812588394,0.4941,3551.1,3550.7,2.81631778]
[1762812588698,0.4941,3551.1,3550.4,0.405504]
[1762812589001,0.4941,3551.1,3550.8,2.81621583]
[1762812589166,0.4941,3551.1,3550.7,2.81631602]
[1762812589793,0.4941,3551.1,3550.5,4.03249221]
[1762812590090,0.4941,3551.1,3550.7,2.81629326]
[1762812590474,0.4941,3551.1,3550.8,2.81623449]
[1762812590656,0.4941,3551.1,3550.8,3.19030367]
[1762812590857,0.4984,3550.9,3550.8,3.19030367]
[1762812591112,0.4984,3550.9,3550.8,3.01186047]
[1762812591410,0.4984,3550.9,3550.8,0.37406918]
[1762812591693,0.4984,3550.9,3550.8,2.81626675]
[1762812597027,0.4984,3550.9,3550.7,2.81634132]
[1762812597320,0.4939,3550.8,3550.7,2.63981801]
[1762812597717,0.4939,3550.8,3550.6,0.002]
[1762812597919,0.4939,3550.7,3550.6,0.002]
[1762812598314,0.9512,3550.7,3550.6,0.002]
[1762812599025,0.4939,3550.7,3550.6,2.81842539]
[1762812599621,0.9512,3550.7,3550.6,2.81842539]
[1762812600061,0.4573,3551.4,3550.6,0.90550018]
[1762812600268,0.4573,3551.4,3550.8,2.81619289]
[1762812600563,0.4573,3551.4,3550.7,2.81630229]
[1762812600863,0.4573,3551.4,3550.7,2.81630945]
[1762812601019,0.4939,3550.8,3550.6,0.56570018]
[1762812601221,0.4939,3550.8,3550.7,2.81634607]
[1762812601450,0.4573,3551.2,3550.8,2.81622492]
[1762812601897,0.4939,3550.9,3550.7,2.81634035]
[1762812602081,0.4939,3550.9,3550.6,0.002]
[1762812602284,0.9512,3550.9,3550.6,2.81840344]
[1762812602469,0.4939,3550.9,3550.7,0.02816346]
[1762812602676,0.4939,3550.9,3550.7,2.81634607]
[1762812602866,0.4573,3551.2,3550.8,2.81626675]
[1762812603069,0.4573,3551.2,3550.8,0.3398]
[1762812603292,0.4573,3551.2,3550.9,2.6033115]
[1762812603490,0.4573,3551.2,3550.9,2.81613026]
[1762812604004,0.4573,3551.2,3550.6,0.002]
[1762812604152,0.4573,3551.2,3550.6,0.31803216]
[1762812604352,0.4573,3551.2,3550.8,2.81626675]
[1762812604600,0.4573,3551.2,3550.9,2.81613979]
[1762812604748,0.4573,3551.2,3550.6,3.13444883]
[1762812604952,0.4573,3551.2,3550.7,2.8163081]
[1762812605508,0.4573,3551.2,3550.7,2.81634607]
[1762812606002,0.4939,3550.8,3550.6,0.002]
[1762812606166,0.99426217,3550.7,3550.6,0.002]
[1762812606373,1.717012,3551.4,3550.6,0.002]
[1762812606572,0.4573,3551.4,3550.6,0.3418]
[1762812606759,0.4573,3551.3,3550.7,2.81629882]
[1762812607103,0.4573,3551.3,3550.6,0.002]
[1762812607272,0.4573,3551.3,3550.6,0.03016425]
[1762812607457,0.4573,3551.3,3550.8,2.81620241]
[1762812607660,0.4573,3551.3,3550.9,0.02816187]
[1762812608161,0.4939,3551.0,3550.6,0.002]
[1762812608356,0.4939,3550.7,3550.6,2.81841755]
[1762812608564,0.4939,3550.7,3550.6,0.002]
[1762812608807,0.9512,3550.7,3550.6,0.002]
[1762812609207,0.9512,3550.7,3550.5,2.81649805]
[1762812609502,0.4939,3550.6,3550.4,2.81655544]
[1762812610265,0.4939,3550.6,3550.5,2.81650471]
[1762812610464,0.001,3551.2,3550.5,2.81647344]
[1762812610664,0.001,3551.2,3550.3,2.81864956]
[1762812610665,0.4573,3551.0,3550.3,2.81864956]
[1762812610866,0.4573,3551.0,3550.6,2.81637965]
[1762812611088,0.4573,3551.0,3550.7,14.5]
[1762812611474,0.4939,3550.8,3550.7,14.5]
[1762812614300,0.9512,3550.8,3550.7,14.5]
[1762812615302,0.9512,3550.8,3550.7,2.81634607]
[1762812616077,0.001,3551.2,3550.7,2.81634607]
[1762812616078,0.001,3551.2,3550.7,0.3398]
[1762812616283,0.001,3551.2,3550.8,14.5]
[1762812616494,0.001,3551.2,3550.9,2.81618601]
[1762812616701,0.4583,3551.2,3550.9,2.81618601]
[1762812616904,0.4939,3551.0,3550.9,2.81618601]
[1762812617307,0.9512,3551.0,3550.4,0.4327322]
[1762812617612,0.4939,3550.9,3550.6,2.81642094]
[1762812618621,0.4939,3550.9,3550.7,14.5]
[1762812619195,0.4939,3550.8,3550.7,14.5]
[1762812619377,0.4939,3550.8,3550.7,17.31634607]
[1762812620117,0.4573,3550.9,3550.7,17.31634607]
[1762812620417,50.4939,3550.8,3550.3,0.002]
[1762812620712,50.0,3550.8,3550.7,2.81634607]
[1762812620905,50.0,3550.8,3550.7,3.15614607]
[1762812621079,50.0,3550.8,3550.7,2.81634607]
[1762812621281,50.4939,3550.8,3550.3,15.82379512]
[1762812621616,50.4939,3550.8,3550.7,2.81634607]
[1762812624213,50.4939,3550.8,3550.3,16.60873522]
[1762812624414,50.4939,3550.8,3550.3,19.4253812]
[1762812624602,50.4939,3550.8,3550.4,2.81653865]
[1762812624921,50.4939,3550.8,3550.4,2.81655312]
[1762812624922,50.9512,3550.8,3550.4,2.81655312]
[1762812625292,0.4906,3550.5,3550.3,14.5]
[1762812625495,0.4906,3550.4,3550.3,14.5]
[1762812625696,0.4906,3550.4,3550.0,7.5]
[1762812626022,50.0,3550.8,3550.0,7.5]
[1762812626023,0.4906,3550.1,3550.0,7.5]
[1762812626242,0.9821,3550.1,3549.9,0.002]
[1762812626393,0.4643,3550.0,3549.9,0.002]
[1762812626719,0.9558,3550.0,3549.9,0.002]
[1762812627519,0.1954,3549.9,3549.1,0.01]
[1762812627687,0.4848,3549.6,3549.3,2.81739768]
[1762812627887,0.4848,3549.6,3549.1,0.01]
[1762812628224,0.4848,3549.6,3549.5,2.81729821]
[1762812628399,0.4848,3549.6,3549.1,0.1881]
[1762812628400,0.4848,3549.6,3549.4,17.31735033]
[1762812628601,0.4848,3549.6,3549.4,14.5]
[1762812628801,0.4645,3549.5,3549.4,17.31737758]
[1762812629233,0.4645,3549.5,3549.4,14.5]
[1762812629448,0.4645,3549.5,3549.4,17.31737758]
[1762812629722,0.1954,3549.9,3549.5,2.81727035]
[1762812629884,0.4915,3549.8,3549.5,2.81727035]
[1762812630088,0.4906,3549.6,3549.4,17.31735666]
[1762812630320,0.4587,3549.5,3549.4,17.31737758]
[1762812630487,0.4587,3549.5,3549.4,14.5]
[1762812630692,0.9502,3549.5,3549.4,17.31737758]
[1762812630906,0.9502,3549.5,3549.4,14.5]
[1762812631292,0.9502,3549.5,3549.4,17.31737758]
[1762812631701,0.9502,3549.5,3549.1,0.01]
[1762812631906,0.4915,3549.4,3549.2,2.81748876]
[1762812632101,0.4915,3549.4,3549.3,2.81745696]
[1762812632394,0.4915,3549.4,3549.3,17.31745696]
[1762812632595,0.9821,3549.4,3549.3,17.31745696]
[1762812633188,0.9821,3549.4,3549.3,14.5]
[1762812633392,0.9821,3549.4,3549.2,2.81751562]
[1762812633605,0.4915,3549.4,3549.3,2.81745696]
[1762812633801,0.1954,3549.9,3549.3,2.81745696]
[1762812634006,0.4906,3549.4,3549.3,2.81745696]
[1762812634496,0.4906,3549.4,3549.3,17.31745696]
[1762812634938,0.9821,3549.4,3549.1,0.01]
[1762812635142,0.4915,3549.4,3549.3,2.81745696]
[1762812635342,0.1954,3549.9,3549.3,2.81745696]
[1762812635509,0.4906,3549.4,3549.3,2.81745696]
[1762812635897,0.9821,3549.4,3549.3,2.81745696]
[1762812636896,0.9821,3549.4,3549.1,14.51]
[1762812637096,0.4587,3549.2,3549.1,17.32761573]
[1762812639050,0.4915,3549.5,3549.4,2.81737758]
[1762812639502,0.9821,3549.5,3548.9,0.002]
[1762812639702,0.9821,3549.5,3548.9,0.44394033]
[1762812640241,0.1954,3550.3,3550.0,2.816845]
[1762812640412,0.1954,3550.5,3550.0,2.81684217]
[1762812640613,0.1946612,3550.4,3550.1,0.02816822]
[1762812640798,0.6869,3550.5,3550.2,2.81668136]
[1762812640999,0.6869,3550.5,3550.1,0.02816822]
[1762812641198,0.4915,3550.4,3549.7,0.405504]
[1762812641630,0.4915,3550.4,3550.2,2.81667708]
[1762812641830,0.4915,3550.4,3550.2,2.81669755]
[1762812642107,50.001,3550.8,3549.9,2.81698076]
[1762812642415,50.001,3550.8,3550.5,2.81643464]
[1762812642610,50.4925,3550.8,3550.5,2.81643464]
[1762812642810,0.4906,3550.6,3550.5,2.81643464]
[1762812643050,0.4906,3550.6,3550.0,0.35622848]
[1762812643229,0.9821,3550.6,3550.3,2.81665284]
[1762812643628,0.4587,3550.4,3550.3,2.81665284]
[1762812643942,0.4587,3550.4,3550.0,0.35622848]
[1762812644144,0.4587,3550.4,3550.3,2.81666338]
[1762812644339,0.4587,3550.4,3550.2,2.81668776]
[1762812644546,0.4587,3550.4,3550.3,2.81666338]
[1762812645645,0.4587,3550.4,3549.8,0.3398]
[1762812645808,0.4587,3550.4,3550.2,2.81668229]
[1762812646328,0.4587,3550.4,3550.3,2.81666338]
[1762812647343,1.259712,3550.3,3549.3,7.502]
[1762812647543,0.459,3549.4,3549.3,7.502]
[1762812647722,0.9505,3549.4,3549.3,7.502]
[1762812648244,0.9505,3549.4,3549.3,0.002]
[1762812650229,2.9980466,3549.1,3548.9,0.002]
[1762812650425,0.9815,3549.0,3548.9,0.002]
[1762812650631,2.9980466,3549.1,3548.9,0.002]
[1762812651656,2.9980466,3549.1,3548.7,2.61706543]
[1762812652556,3.4895466,3549.1,3548.5,0.002]
[1762812652854,2.9980466,3549.1,3548.7,2.81792221]
[1762812653258,2.9980466,3549.1,3548.5,2.82003244]
[1762812653560,3.4895466,3549.1,3548.6,2.81801078]
[1762812653923,3.4895466,3549.1,3548.5,0.002]
[1762812655164,3.4869466,3549.1,3548.5,0.002]
[1762812655354,0.6431,3548.6,3548.5,0.002]
[1762812655734,1.132,3548.6,3548.5,0.002]
[1762812657760,0.6382,3547.8,3546.8,1.51303455]
[1762812657961,0.4545,3547.6,3546.7,1.51303455]
[1762812658162,0.4545,3547.6,3546.5,1.51303455]
[1762812658338,0.4545,3547.2,3546.5,2.81966818]
[1762812658671,0.4545,3547.2,3546.6,14.5]
[1762812658864,0.9147,3547.2,3546.6,14.5]
[1762812659568,0.9147,3547.2,3546.1,0.01]
[1762812659956,0.9147,3547.2,3546.1,14.51]
[1762812660563,0.9147,3547.2,3546.1,0.01]
[1762812660564,2.81943831,3546.9,3546.1,0.01]
[1762812660760,0.5309,3546.2,3546.1,0.01]
[1762812661137,0.9911,3546.2,3546.1,0.01]
[1762812663164,0.9911,3546.2,3546.1,0.012]
[1762812663672,0.5309,3546.2,3545.2,2.66328187]
[1762812663866,0.4602,3546.1,3545.3,0.01457247]
[1762812664064,0.4602,3546.1,3545.3,0.01657205]
[1762812664542,0.4602,3546.1,3545.3,2.83718849]
[1762812664741,0.4602,3546.1,3545.3,0.01657205]
[1762812665385,0.4602,3546.1,3545.4,0.0016]
[1762812665558,0.94167415,3546.1,3545.4,0.0016]
[1762812665743,0.4545,3545.5,3545.4,0.0016]
[1762812666147,0.9147,3545.5,3545.4,0.0016]
[1762812667585,0.9147,3545.5,3545.3,0.002]
[1762812667751,0.9147,3545.4,3545.3,0.002]
[1762812669104,1.45890901,3545.4,3545.3,0.002]
[1762812669646,1.48704092,3545.4,3545.3,0.002]
[1762812669986,1.259712,3545.1,3544.1,0.01]
[1762812670196,1.0968,3544.2,3544.1,0.01]
[1762812671261,1.502304,3544.2,3544.1,0.01]
[1762812671590,1.78131879,3544.2,3544.1,0.01]
[1762812673423,1.78131879,3544.2,3543.1,0.01]
[1762812673424,1.665216,3544.1,3543.1,0.01]
[1762812673652,0.5601,3543.2,3543.1,0.01]
[1762812673991,1.04843191,3543.2,3543.1,0.01]
[1762812674430,1.0203,3543.2,3543.1,0.01]
[1762812675614,10.03521365,3543.2,3543.1,0.01]
[1762812675814,0.405504,3543.0,3541.5,7.27045457]
[1762812676020,0.6382,3541.6,3541.5,7.27045457]
[1762812676193,1.0984,3541.6,3541.1,0.01]
[1762812676392,0.6382,3541.6,3541.1,0.01]
[1762812677205,0.6439,3542.0,3541.1,0.01]
[1762812677531,0.4602,3541.9,3541.1,2.83397518]
[1762812677731,0.4602,3541.9,3541.1,2.83397844]
[1762812677944,0.02813191,3541.8,3541.1,0.01]
[1762812678236,0.4602,3541.9,3541.1,0.01]
[1762812678441,0.4602,3541.9,3541.1,2.83396971]
[1762812678616,0.4602,3541.9,3541.2,2.82389583]
[1762812679015,0.4602,3541.9,3541.1,2.83396684]
[1762812679208,0.4602,3541.9,3541.1,0.01]
[1762812679542,0.4602,3541.9,3541.1,2.8339793]
[1762812679839,0.4602,3541.9,3541.2,2.82389698]
[1762812680024,0.4602,3541.9,3541.3,2.82376275]
[1762812680226,0.4602,3541.9,3541.1,2.83391954]
[1762812680405,0.4602,3541.9,3541.3,2.82378843]
[1762812684638,0.4602,3542.5,3541.7,2.82344773]
[1762812684943,0.4602,3542.5,3541.6,2.82356235]
[1762812685144,0.4602,3542.5,3541.7,2.82347133]
[1762812685344,0.4602,3542.5,3541.2,0.3414]
[1762812685345,0.4602,3542.5,3541.6,2.82355859]
[1762812685737,0.4602,3542.5,3541.8,2.82342267]
[1762812686045,0.4602,3542.5,3541.7,2.82347985]
[1762812686342,0.4602,3542.5,3541.2,0.3414]
[1762812686548,0.4602,3542.5,3541.7,2.82343916]
[1762812687412,0.4602,3542.5,3541.6,2.82354899]
[1762812687807,0.4602,3542.5,3541.6,2.45916425]
[1762812688029,0.4602,3542.5,3541.7,2.82350229]
[1762812688560,0.4602,3542.5,3541.3,3.16520549]
[1762812688721,0.4602,3542.5,3541.4,2.82374202]
[1762812688920,0.4602,3542.5,3541.6,2.82353836]
[1762812689343,0.4602,3542.5,3541.7,2.82348905]
[1762812691744,1.443412,3543.0,3541.3,0.69089402]
[1762812691745,0.1837,3543.0,3542.4,0.3414]
[1762812691949,0.4864,3542.5,3541.3,0.34949402]
[1762812692126,0.4864,3542.5,3541.8,2.82335657]
[1762812692330,0.9729,3542.5,3541.9,2.8233008]
[1762812692519,0.4864,3542.0,3541.1,0.012]
[1762812692719,0.4864,3542.0,3541.1,0.3534]
[1762812692914,0.4864,3542.0,3541.5,2.82358769]
[1762812693171,0.4864,3542.0,3541.1,0.3534]
[1762812693321,0.4864,3542.0,3541.4,2.8236748]
[1762812693521,0.4864,3542.0,3541.5,2.8235936]
[1762812693950,0.4864,3542.0,3541.6,2.82354667]
[1762812694421,0.4864,3542.0,3541.7,2.82350283]
[1762812694621,0.4864,3542.0,3541.6,2.82355642]
[1762812694936,0.4864,3542.0,3541.6,2.82352378]
[1762812695258,0.4865,3542.7,3541.2,2.8239015]
[1762812695414,0.4865,3542.6,3541.4,0.3414]
[1762812695620,0.6414012,3542.9,3542.1,2.82311766]
[1762812696037,0.6414012,3542.9,3542.2,0.1797]
[1762812696573,0.4864,3542.3,3541.8,2.82341943]
[1762812696775,0.4864,3542.2,3541.8,2.82341943]
[1762812697580,0.4864,3542.2,3541.6,2.82357304]
[1762812697581,0.4864,3542.2,3541.6,2.82358092]
[1762812697722,0.4864,3542.2,3541.8,2.82338767]
[1762812698526,0.4865,3542.5,3541.9,2.82328004]
[1762812699745,0.4865,3542.5,3541.7,2.82344876]
[1762812699928,0.4865,3542.5,3541.6,2.82354436]
[1762812700262,0.4865,3542.5,3541.5,0.002]
[1762812701182,0.4865,3542.5,3541.5,2.82565785]
[1762812701183,1.09290047,3542.5,3541.5,2.82565785]
[1762812701527,0.4865,3542.4,3541.5,2.82565785]
[1762812702124,1.09290047,3542.4,3541.5,0.002]
[1762812702441,1.09290047,3542.3,3541.5,0.002]
[1762812702640,0.4865,3542.3,3541.5,0.002]
[1762812702839,0.4865,3542.2,3541.5,2.82563234]
[1762812703557,1.0943643,3542.2,3541.5,2.82563234]
[1762812703735,0.4865,3542.2,3541.5,0.002]
[1762812703935,0.4865,3542.1,3541.5,0.002]
[1762812704468,0.4865,3542.1,3541.5,2.82564395]
[1762812705234,0.60908596,3542.0,3541.5,0.002]
[1762812705459,0.4865,3542.1,3541.5,0.002]
[1762812705633,0.60902794,3542.0,3541.5,0.002]
[1762812705858,0.4865,3542.1,3541.5,0.002]
[1762812706029,0.60903492,3542.0,3541.4,2.60518706]
[1762812706234,0.4865,3542.1,3541.4,2.60518706]
[1762812706430,0.60904804,3542.0,3541.4,2.60518706]
[1762812706693,0.4865,3542.1,3541.4,2.60518706]
[1762812706870,0.60904807,3542.0,3541.4,2.60518706]
[1762812707164,0.4865,3542.1,3541.6,2.82353766]
[1762812707368,0.60912226,3542.0,3541.6,2.82353766]
[1762812707568,0.4865,3542.1,3541.6,2.82353766]
[1762812707747,0.6091218,3542.0,3541.6,2.82353766]
[1762812707943,0.4865,3542.1,3541.6,2.82353766]
[1762812708145,0.60911428,3542.0,3541.6,2.82353766]
[1762812708348,0.4865,3542.1,3541.4,2.82367366]
[1762812708648,0.60919134,3542.0,3541.4,2.82367366]
[1762812708837,0.4865,3542.1,3541.5,2.82364355]
[1762812709037,0.60918484,3542.0,3541.5,2.82364355]
[1762812709237,0.4865,3542.1,3541.6,2.82358018]
[1762812709537,0.60927173,3542.0,3541.5,2.82362974]
[1762812709856,0.4865,3542.0,3541.4,2.82370639]
[1762812710063,0.4865,3542.0,3541.3,3.16521402]
[1762812710262,0.4865,3542.0,3541.5,2.82361281]
[1762812710879,1.259712,3541.5,3541.1,0.012]
[1762812711093,0.4864,3541.2,3541.1,0.012]
[1762812711388,0.60932051,3541.3,3541.1,0.012]
[1762812711567,0.60901352,3541.4,3541.1,0.012]